[Event "WYCC 2018 G14"]
[Site "Halkidiki"]
[Date "2018.10.21"]
[Round "2"]
[White "Ivanovic, Tara"]
[Black "Ziegenfuss, Antonia"]
[Result "0-1"]
[ECO "A34"]
[WhiteElo "1085"]
[BlackElo "1969"]
[Annotator "NA"]
[PlyCount "24"]
[EventDate "2018.10.20"]
[EventType "swiss"]
[EventCountry "GRE"]
[SourceTitle "playchess.com"]
[Source "ChessBase"]
[SourceQuality "1"]
[TimeControl "40/5400+30:1800+30"]

1. c4 {[%emt 0:00:00]} c5 {[%emt 0:00:00]} 2. Nc3 {[%emt 0:00:00]} Nf6 {[%emt 0:00:00]} 3. g3 {[%emt 0:00:24]} d5 {[%emt 0:00:18]} 4. e3 {[%emt 0:00:51]} d4 {[%emt 0:05:07]} 5. exd4 {[%emt 0:02:27]} cxd4 {[%emt 0:01:17]} 6. Nce2 {[%emt 0:01:12]} Nc6 {[%emt 0:08:47]} 7. Bg2 {[%emt 0:05:32]} e5 {[%emt 0:05:27]} 8. Nf3 {[%emt 0:04:45]} Bg4 {[%emt 0:26:46]} 9. O-O {[%emt 0:03:55]} e4 {[%emt 0:05:20]} 10. Re1 {[%emt 0:05:34]} Be7 {[%emt 0:07:47]} 11. Qa4 $19 {[%emt 0:05:59]} (11. Nf4) 11... exf3 {[%emt 0:01:41]} 12. Nxd4 {[%emt 0:01:23]} Qxd4 {[%emt 0:01:52]} 0-1

[Event "WYCC 2018 G14"]
[Site "Halkidiki"]
[Date "2018.10.21"]
[Round "3"]
[White "Nurgali, Nazerke"]
[Black "Dhyana Patel"]
[Result "1/2-1/2"]
[ECO "D74"]
[WhiteElo "2263"]
[BlackElo "2002"]
[Annotator "NA"]
[PlyCount "209"]
[EventDate "2018.10.20"]
[EventType "swiss"]
[EventCountry "GRE"]
[SourceTitle "playchess.com"]
[Source "ChessBase"]
[SourceQuality "1"]
[TimeControl "40/5400+30:1800+30"]

1. d4 {[%emt 0:00:00]} Nf6 {[%emt 0:00:00]} 2. c4 {[%emt 0:00:00]} g6 {[%emt 0:00:16]} 3. Nf3 {[%emt 0:00:14]} d5 {[%emt 0:00:48]} 4. cxd5 {[%emt 0:00:40]} Nxd5 {[%emt 0:00:16]} 5. g3 {[%emt 0:00:22]} Bg7 {[%emt 0:00:41]} 6. Bg2 {[%emt 0:00:21]} O-O {[%emt 0:00:25]} 7. O-O {[%emt 0:00:10]} c5 {[%emt 0:00:34]} 8. e4 {[%emt 0:00:32]} Nf6 {[%emt 0:00:39]} 9. e5 {[%emt 0:00:29]} Nfd7 {[%emt 0:00:26] D75: Grünfeldindisch (Fianchetto HV 7... c5)} (9... Nd5 10. dxc5 Na6 11. Qd4 Ndb4 12. Qh4 Nc2 13. Bg5 Qd7 14. Nc3 Nxa1 15. Rxa1 f6 16. Be3 Qg4 17. Qxg4 Bxg4 18. a3 {½-½ (54) Wojtaszek,R (2750)-Tomczak,J (2589) Warsaw 2018}) 10. e6 {[%emt 0:00:56]} fxe6 {[%emt 0:00:24]} 11. Ng5 {[%emt 0:00:20]} Qb6 {[%emt 0:01:14]} 12. Qe2 {[%emt 0:01:17]} cxd4 {[%emt 0:00:59]} 13. Qxe6+ {[%emt 0:02:19]} Qxe6 {[%emt 0:00:20]} 14. Nxe6 {[%emt 0:00:04]} Nc6 {[%emt 0:00:36]} 15. Nxf8 {[%emt 0:01:05]} Kxf8 {[%emt 0:00:31]} 16. Na3 $146 {[%emt 0:03:28]} ({Vorgänger:} 16. Nd2 Nc5 17. Ne4 Nxe4 18. Bxe4 {1-0 (62) Alavi,S (2457)-Vahidov,T (2422) Teheran 2016}) 16... Nde5 {[%emt 0:05:10]} 17. h3 {[%emt 0:09:22]} Bf5 {[%emt 0:05:22]} 18. Rd1 {[%emt 0:03:25]} Rd8 {[%emt 0:07:28]} 19. f4 {[%emt 0:05:37]} Nf7 {[%emt 0:00:59]} 20. g4 {[%emt 0:04:52]} Be6 {[%emt 0:00:29]} 21. Bd2 {[%emt 0:02:17]} Bd5 {[%emt 0:05:02]} 22. Nb5 {[%emt 0:08:48]} Bxg2 {[%emt 0:03:31]} 23. Kxg2 {[%emt 0:00:04]} Nd6 {[%emt 0:01:35]} 24. Nxd6 {[%emt 0:03:01]} Rxd6 {[%emt 0:00:22]} 25. Rac1 {[%emt 0:00:24]} Kf7 {[%emt 0:02:06]} 26. Kf3 {[%emt 0:03:46]} Rf6 {[%emt 0:01:30]} 27. Ke4 {[%emt 0:01:27]} Rd6 {[%emt 0:02:55]} 28. Kd3 {[%emt 0:02:35]} a6 {[%emt 0:03:21]} 29. Rf1 {[%emt 0:01:12]} Ke6 {[%emt 0:01:02]} 30. a3 {[%emt 0:00:51]} Kd5 {[%emt 0:01:52]} 31. b4 {[%emt 0:01:23]} b6 {[%emt 0:00:17]} 32. Rce1 {[%emt 0:10:17]} e5 {[%emt 0:00:42]} 33. fxe5 {[%emt 0:00:29]} Nxe5+ {[%emt 0:00:07]} 34. Kc2 {[%emt 0:00:30]} Rc6+ {[%emt 0:00:36]} 35. Kb3 {[%emt 0:01:04]} Nc4 {[%emt 0:02:06]} 36. Bc1 {[%emt 0:02:30]} Ne5 {[%emt 0:01:16]} 37. Bd2 {[%emt 0:05:07]} Nc4 {[%emt 0:00:17]} 38. Bf4 {[%emt 0:03:10]} Be5 {[%emt 0:01:36]} 39. Bc1 {[%emt 0:01:50]} Nd6 {[%emt 0:00:57]} 40. h4 {[%emt 0:00:00]} Rc3+ {[%emt 0:00:00]} 41. Ka2 {[%emt 0:14:21]} Rc8 {[%emt 0:03:49]} 42. Bf4 {[%emt 0:02:58]} Bxf4 {[%emt 0:01:15]} 43. Rxf4 {[%emt 0:00:03]} Rc2+ {[%emt 0:00:33]} 44. Kb1 {[%emt 0:00:34]} Rc3 {[%emt 0:00:12]} 45. Rd1 {[%emt 0:01:43]} Ne4 {[%emt 0:00:52]} 46. Rf7 {[%emt 0:03:16]} Rxa3 {[%emt 0:01:13]} 47. Rd7+ {[%emt 0:00:35]} Nd6 {[%emt 0:00:14]} 48. Rxh7 {[%emt 0:00:54]} Rb3+ {[%emt 0:00:18]} 49. Ka2 {[%emt 0:00:25]} Rxb4 {[%emt 0:00:04]} 50. h5 {[%emt 0:00:16]} gxh5 {[%emt 0:00:57]} 51. gxh5 {[%emt 0:02:47]} Nb5 {[%emt 0:00:59]} 52. h6 {[%emt 0:02:15]} Kc4 {[%emt 0:01:15]} 53. Rc7+ {[%emt 0:02:58]} Nxc7 {[%emt 0:00:34]} 54. Rc1+ {[%emt 0:01:37]} Kd3 {[%emt 0:04:13]} 55. h7 {[%emt 0:00:37]} Nd5 {[%emt 0:00:17]} 56. h8=Q {[%emt 0:00:17]} Nc3+ {[%emt 0:00:07]} 57. Ka3 {[%emt 0:01:08]} a5 {[%emt 0:00:20]} 58. Qh7+ {[%emt 0:00:50]} Kc4 {[%emt 0:00:54]} 59. Qf7+ {[%emt 0:02:24]} Kb5 {[%emt 0:01:06]} 60. Qf5+ {[%emt 0:00:46]} Kc4 {[%emt 0:00:32]} 61. Qe6+ {[%emt 0:01:01]} Kd3 {[%emt 0:00:29]} 62. Qg6+ {[%emt 0:01:03]} Kc4 {[%emt 0:00:15]} 63. Qf7+ {[%emt 0:01:20]} Kb5 {[%emt 0:00:09]} 64. Rf1 {[%emt 0:01:35]} Ka6 {[%emt 0:04:11]} 65. Qe6 {[%emt 0:06:09]} Nb5+ {[%emt 0:00:41]} 66. Ka2 {[%emt 0:00:03]} Nc3+ {[%emt 0:00:08]} 67. Ka1 {[%emt 0:00:21]} Kb5 {[%emt 0:00:13]} 68. Qf5+ {[%emt 0:05:44]} Kc4 $1 {[%emt 0:01:20]} 69. Qf7+ {[%emt 0:00:18]} Kb5 {[%emt 0:00:12]} 70. Qe8+ {[%emt 0:02:24]} Kc4 {[%emt 0:00:18]} 71. Qg8+ {[%emt 0:01:00]} Kb5 {[%emt 0:00:11]} 72. Qe8+ {[%emt 0:02:07]} Kc4 {[%emt 0:00:06]} 73. Qc6+ {[%emt 0:00:47]} Kb3 {[%emt 0:00:10]} 74. Qe6+ {[%emt 0:00:14]} Ka4 {[%emt 0:01:53]} 75. Rc1 {[%emt 0:02:27]} Kb5 {[%emt 0:00:40]} 76. Rg1 {[%emt 0:01:48]} Ka4 $1 {[%emt 0:01:39]} 77. Rf1 $2 {[%emt 0:00:45]} (77. Qh3 $18) 77... Kb5 {[%emt 0:00:48]} 78. Qf7 {[%emt 0:00:34]} Ka4 {[%emt 0:00:28]} 79. Rc1 {[%emt 0:00:53]} Kb5 {[%emt 0:00:09]} 80. Qe6 {[%emt 0:00:32]} Ka4 {[%emt 0:00:39]} 81. Qf5 {[%emt 0:00:18]} Kb3 {[%emt 0:01:29]} 82. Qe6+ {[%emt 0:00:43]} Ka4 {[%emt 0:00:23]} 83. Rh1 {[%emt 0:00:31]} Kb5 {[%emt 0:00:08]} 84. Qf5+ {[%emt 0:00:47]} Kc4 {[%emt 0:01:10]} 85. Qf7+ {[%emt 0:01:06]} Kb5 {[%emt 0:00:07]} 86. Qd7+ {[%emt 0:00:14]} Kc4 {[%emt 0:00:15]} 87. Qc6+ {[%emt 0:00:30]} Kb3 {[%emt 0:00:04]} 88. Qe6+ {[%emt 0:00:04]} Ka4 {[%emt 0:00:13]} 89. Rc1 {[%emt 0:00:32]} Kb5 {[%emt 0:00:09]} 90. Qf5+ {[%emt 0:00:34]} Kc4 $1 {[%emt 0:00:27]} 91. Qc2 {[%emt 0:00:42]} Kb5 {[%emt 0:00:59]} 92. Qd3+ {[%emt 0:00:19]} Ka4 {[%emt 0:01:01]} 93. Qc2+ $2 {[%emt 0:00:35]} (93. Re1 $18) 93... Kb5 {[%emt 0:00:04]} 94. Qf5+ {[%emt 0:00:32]} Kc4 {[%emt 0:00:22] [#]} 95. Qe6+ $2 {[%emt 0:01:03]} Kb5 {[%emt 0:00:07]} 96. Rg1 {[%emt 0:00:30]} Ka4 {[%emt 0:00:15]} 97. Rf1 {[%emt 0:00:34]} Kb5 {[%emt 0:00:12]} 98. Qf5+ {[%emt 0:00:07]} Kc4 {[%emt 0:00:18]} 99. Qf7+ {[%emt 0:00:29]} Kb5 {[%emt 0:00:13] [#]} 100. Rg1 $1 {[%emt 0:00:20]} Ka4 {[%emt 0:00:23]} 101. Qf5 {[%emt 0:00:32]} Kb3 $1 {[%emt 0:00:10]} 102. Qe6+ {[%emt 0:00:24]} Ka4 {[%emt 0:00:09]} 103. Rf1 {[%emt 0:00:51]} Kb5 {[%emt 0:00:13]} 104. Rf5+ {[%emt 0:00:17]} Ka4 {[%emt 0:00:13]} 105. Rf1 $11 {[%emt 0:00:36]} 1/2-1/2

[Event "WYCC 2018 G14"]
[Site "Halkidiki"]
[Date "2018.10.21"]
[Round "3"]
[White "Caglar, Sila"]
[Black "Nguyen, Thien Ngan"]
[Result "1-0"]
[ECO "C45"]
[WhiteElo "2184"]
[BlackElo "1888"]
[Annotator "NA"]
[PlyCount "95"]
[EventDate "2018.10.20"]
[EventType "swiss"]
[EventCountry "GRE"]
[SourceTitle "playchess.com"]
[Source "ChessBase"]
[SourceQuality "1"]
[TimeControl "40/5400+30:1800+30"]

1. e4 {[%emt 0:00:00]} e5 {[%emt 0:00:00]} 2. Nf3 {[%emt 0:00:00]} Nc6 {[%emt 0:00:00]} 3. d4 {[%emt 0:00:00]} exd4 {[%emt 0:00:00]} 4. Nxd4 {[%emt 0:00:00]} Bc5 {[%emt 0:00:06]} 5. Be3 {[%emt 0:00:00]} Qf6 {[%emt 0:01:57]} 6. c3 {[%emt 0:00:05]} Nge7 {[%emt 0:00:12]} 7. Bb5 {[%emt 0:00:35]} a6 {[%emt 0:02:21]} 8. Ba4 {[%emt 0:00:53]} b5 {[%emt 0:01:38]} 9. Bc2 {[%emt 0:00:21]} O-O {[%emt 0:01:41]} 10. O-O {[%emt 0:00:32]} d6 {[%emt 0:00:33]} 11. Nxc6 {[%emt 0:12:13]} Nxc6 {[%emt 0:01:09]} 12. Bxc5 {[%emt 0:05:43]} dxc5 {[%emt 0:00:42]} 13. f4 {[%emt 0:00:49]} Bb7 {[%emt 0:02:27]} 14. Qh5 {[%emt 0:02:34]} Qe7 {[%emt 0:03:35]} 15. Nd2 {[%emt 0:04:51]} Na5 {[%emt 0:01:34]} 16. Rae1 {[%emt 0:01:33]} Rad8 {[%emt 0:03:36]} 17. Nf3 {[%emt 0:01:43]} Nc4 {[%emt 0:01:16]} 18. e5 {[%emt 0:15:20]} g6 $14 {[%emt 0:03:21]} 19. Qh6 {[%emt 0:00:42]} Bxf3 {[%emt 0:01:34]} 20. Rxf3 {[%emt 0:00:25]} f5 {[%emt 0:02:11]} 21. Bb3 {[%emt 0:04:55]} Rd2 {[%emt 0:06:31]} 22. Rf2 {[%emt 0:03:14]} Rfd8 {[%emt 0:01:21]} 23. Ree2 {[%emt 0:03:13]} Rxe2 {[%emt 0:03:59]} 24. Rxe2 {[%emt 0:01:35]} Rd3 {[%emt 0:01:32]} 25. g3 {[%emt 0:12:33]} Qe6 {[%emt 0:04:38]} 26. Qh3 {[%emt 0:02:29]} c6 {[%emt 0:06:48]} 27. Qg2 {[%emt 0:01:45]} Kf7 {[%emt 0:01:38]} 28. Qf2 {[%emt 0:09:04]} Qd5 {[%emt 0:02:30]} 29. Qe1 {[%emt 0:12:36]} Ke6 {[%emt 0:03:08]} 30. Bc2 {[%emt 0:02:17]} Rd2 {[%emt 0:03:16]} 31. b3 {[%emt 0:00:54]} Rxe2 {[%emt 0:02:40]} 32. Qxe2 {[%emt 0:00:04]} Nd2 {[%emt 0:06:08]} 33. Kf2 {[%emt 0:00:52]} h5 {[%emt 0:05:30]} 34. Bd3 {[%emt 0:01:27]} c4 {[%emt 0:03:53]} 35. bxc4 {[%emt 0:00:11]} bxc4 {[%emt 0:00:46]} 36. Bc2 {[%emt 0:00:31]} a5 {[%emt 0:01:59]} 37. Qe3 {[%emt 0:00:52]} a4 {[%emt 0:03:03]} 38. Ke2 {[%emt 0:01:21]} Ne4 {[%emt 0:08:11]} 39. Bxa4 {[%emt 0:00:44]} Qa5 {[%emt 0:01:16]} 40. Bxc6 {[%emt 0:00:00]} Qxa2+ {[%emt 0:00:00]} 41. Kf3 {[%emt 0:13:55]} Nd2+ {[%emt 0:12:08]} 42. Kg2 {[%emt 0:00:18]} Ne4+ {[%emt 0:01:13]} 43. Kh3 {[%emt 0:05:23]} Nf2+ {[%emt 0:02:24]} 44. Kh4 {[%emt 0:00:49]} Nd3 {[%emt 0:02:30]} 45. Bb5 {[%emt 0:03:44]} Nc5 {[%emt 0:06:28]} 46. Kh3 {[%emt 0:02:11]} Ne4 {[%emt 0:03:21]} 47. Qd4 {[%emt 0:02:44]} Qa3 {[%emt 0:02:15]} 48. Qd7# {[%emt 0:00:14]} 1-0

[Event "WYCC 2018 G14"]
[Site "Halkidiki"]
[Date "2018.10.21"]
[Round "3"]
[White "Song, Yuxin"]
[Black "Mrudul Dehankar"]
[Result "1-0"]
[ECO "C78"]
[WhiteElo "2178"]
[BlackElo "1996"]
[Annotator "NA"]
[PlyCount "151"]
[EventDate "2018.10.20"]
[EventType "swiss"]
[EventCountry "GRE"]
[SourceTitle "playchess.com"]
[Source "ChessBase"]
[SourceQuality "1"]
[TimeControl "40/5400+30:1800+30"]

1. e4 {[%emt 0:00:00]} e5 {[%emt 0:00:00]} 2. Nf3 {[%emt 0:00:00]} Nc6 {[%emt 0:00:00]} 3. Bb5 {[%emt 0:00:00]} a6 {[%emt 0:00:00]} 4. Ba4 {[%emt 0:00:00]} Nf6 {[%emt 0:00:07]} 5. O-O {[%emt 0:00:04]} b5 {[%emt 0:00:03]} 6. Bb3 {[%emt 0:00:09]} Bb7 {[%emt 0:00:08]} 7. d3 Bc5 {[%emt 0:00:00]} 8. a4 {[%emt 0:01:05]} O-O 9. Nc3 {[%emt 0:00:28] C78: Ruy Lopez: Archangelsk and Möller Defences} Nd4 {[%emt 0:00:56]} (9... Na5 10. Ba2 b4 11. Ne2 d5 12. Nxe5 dxe4 13. d4 Bb6 14. Bg5 b3 15. cxb3 Nc6 16. b4 Nxd4 17. Nxd4 Qxd4 18. Bxf6 Qxd1 19. Raxd1 gxf6 20. Nxf7 Rxf7 {1-0 (40) Anand,V (2779)-Topalov,V (2760) Saint Louis 2016}) 10. Nxd4 {[%emt 0:00:59]} exd4 {[%emt 0:00:06]} 11. Ne2 {[%emt 0:00:10]} Re8 {[%emt 0:00:17]} 12. Bg5 h6 13. Bxf6 {[%emt 0:02:19]} Qxf6 {[%emt 0:01:05] [#]} 14. axb5 $146 {[%emt 0:00:03]} ({Predecessor:} 14. Ng3 c6 15. Nh5 Qg6 16. f4 {½-½ (43) Matei,C (2504)-Neagu,L (2558) ICCF email 2012}) 14... axb5 {[%emt 0:00:08]} 15. Rxa8 Rxa8 {[%emt 0:14:05]} 16. Ng3 {[%emt 0:02:27]} Bf8 {[%emt 0:15:47]} 17. Qh5 {[%emt 0:02:37]} d5 {[%emt 0:18:20]} 18. Bxd5 {[%emt 0:07:04]} g6 {[%emt 0:03:46]} 19. Qg4 {[%emt 0:00:13]} Bxd5 {[%emt 0:01:13]} 20. exd5 {[%emt 0:00:04]} Rd8 {[%emt 0:03:35]} 21. Ne4 {[%emt 0:16:59]} Qg7 {[%emt 0:09:36]} 22. Qh4 {[%emt 0:01:05]} g5 23. Qh5 f5 {[%emt 0:06:56]} 24. Ng3 {[%emt 0:00:41]} f4 {[%emt 0:01:46]} 25. Ne4 {[%emt 0:00:47]} Rxd5 {[%emt 0:05:01]} 26. Ra1 Qf7 {[%emt 0:00:02]} 27. Qxf7+ {[%emt 0:09:46]} Kxf7 {[%emt 0:00:34]} 28. Ra7 {[%emt 0:00:16]} Rd7 {[%emt 0:01:04]} 29. Rb7 b4 30. f3 {[%emt 0:01:39]} Ke6 {[%emt 0:01:40]} 31. b3 {[%emt 0:02:54]} Be7 {[%emt 0:03:20]} 32. Ra7 {[%emt 0:02:52]} c6 {[%emt 0:03:48]} 33. Ra6 {[%emt 0:01:35]} Kd5 {[%emt 0:02:59]} 34. Nd2 {[%emt 0:00:53]} Bc5 {[%emt 0:00:57]} 35. Ra8 {[%emt 0:03:54]} Ra7 {[%emt 0:03:54]} 36. Rh8 {[%emt 0:05:02]} Ra2 {[%emt 0:01:46]} 37. Re8 {[%emt 0:04:02]} Bb6 {[%emt 0:02:33]} 38. Nc4 {[%emt 0:00:38]} Bc7 {[%emt 0:00:11]} 39. Rc8 {[%emt 0:05:10]} Ra7 {[%emt 0:00:42]} 40. Kf2 {[%emt 0:00:00]} Kc5 {[%emt 0:00:00]} 41. Rf8 {[%emt 0:03:12]} Kd5 {[%emt 0:04:06]} 42. Rf7 {[%emt 0:02:09]} Bb8 {[%emt 0:13:22]} 43. Nb6+ {[%emt 0:01:07]} Ke6 {[%emt 0:05:35]} 44. Rf8 {[%emt 0:00:10]} Be5 {[%emt 0:00:25]} 45. Re8+ {[%emt 0:01:07]} Re7 {[%emt 0:01:56]} 46. Rc8 {[%emt 0:01:16]} Rc7 {[%emt 0:00:39]} 47. Ra8 {[%emt 0:00:10]} Bf6 {[%emt 0:01:38]} 48. Nc4 {[%emt 0:00:49]} Kf7 {[%emt 0:02:36]} 49. Nd6+ {[%emt 0:01:27]} Ke6 {[%emt 0:00:42]} 50. Ne4 {[%emt 0:00:57]} Kf7 {[%emt 0:00:58]} 51. Ra5 {[%emt 0:02:25]} Be7 {[%emt 0:00:35]} 52. h4 {[%emt 0:01:16]} Kg6 {[%emt 0:01:20]} 53. hxg5 {[%emt 0:00:42]} hxg5 {[%emt 0:00:32]} 54. Re5 {[%emt 0:00:35]} Kh6 {[%emt 0:01:28]} 55. Kg1 {[%emt 0:00:26]} Kg6 {[%emt 0:01:07]} 56. Kh2 {[%emt 0:00:36]} Bd8 {[%emt 0:00:41]} 57. Re8 {[%emt 0:01:13]} Be7 {[%emt 0:01:10]} 58. Kh3 {[%emt 0:01:59]} Kf5 {[%emt 0:00:23]} 59. Rg8 {[%emt 0:01:09]} c5 {[%emt 0:01:30]} 60. Rg7 {[%emt 0:01:12]} Rc8 {[%emt 0:01:20]} 61. g4+ {[%emt 0:00:29]} Ke6 {[%emt 0:01:05]} 62. Nxg5+ {[%emt 0:01:56]} Bxg5 {[%emt 0:00:51]} 63. Rxg5 {[%emt 0:00:01]} Kd6 {[%emt 0:00:31]} 64. Rf5 {[%emt 0:00:40]} Re8 {[%emt 0:00:30]} 65. g5 {[%emt 0:00:34]} Re1 {[%emt 0:00:28]} 66. Rxf4 {[%emt 0:00:25]} Rg1 {[%emt 0:00:31]} 67. Rg4 {[%emt 0:00:06]} Rh1+ {[%emt 0:00:09]} 68. Kg3 {[%emt 0:00:13]} Rh7 {[%emt 0:00:35]} 69. g6 {[%emt 0:00:18]} Rg7 {[%emt 0:00:04]} 70. Kf4 {[%emt 0:00:07]} Ke6 {[%emt 0:00:25]} 71. Kg5 {[%emt 0:00:07]} Rg8 {[%emt 0:00:19]} 72. Kh6 {[%emt 0:00:37]} Rh8+ {[%emt 0:00:13]} 73. Kg7 {[%emt 0:00:08]} Ra8 {[%emt 0:00:24]} 74. Kh7 {[%emt 0:00:08]} Ra1 {[%emt 0:00:25]} 75. g7 {[%emt 0:00:07]} Rh1+ {[%emt 0:00:04]} 76. Kg6 {[%emt 0:00:07]} 1-0

[Event "WYCC 2018 G14"]
[Site "Halkidiki"]
[Date "2018.10.21"]
[Round "3"]
[White "Galvan Cipriani, Viviana"]
[Black "Velea, Anne-Marie"]
[Result "1-0"]
[ECO "A13"]
[WhiteElo "2109"]
[BlackElo "1859"]
[Annotator "NA"]
[PlyCount "51"]
[EventDate "2018.10.20"]
[EventType "swiss"]
[EventCountry "GRE"]
[SourceTitle "playchess.com"]
[Source "ChessBase"]
[SourceQuality "1"]
[TimeControl "40/5400+30:1800+30"]

1. c4 {[%emt 0:00:00]} e6 {[%emt 0:00:00]} 2. Nf3 {[%emt 0:00:00]} d5 {[%emt 0:00:00]} 3. b3 {[%emt 0:00:04]} Nf6 {[%emt 0:00:25]} 4. Bb2 {[%emt 0:00:30]} b6 {[%emt 0:01:13]} 5. g3 {[%emt 0:00:16]} Bb7 {[%emt 0:00:07]} 6. Bg2 {[%emt 0:00:06]} Bd6 {[%emt 0:00:47]} 7. d3 {[%emt 0:02:11]} O-O {[%emt 0:03:26]} 8. Nbd2 {[%emt 0:00:14]} Nbd7 {[%emt 0:02:53]} 9. Qc2 {[%emt 0:04:20]} c5 {[%emt 0:03:35]} 10. O-O {[%emt 0:00:48]} d4 {[%emt 0:13:04]} 11. e3 {[%emt 0:03:44]} e5 {[%emt 0:02:07]} 12. exd4 {[%emt 0:01:04]} exd4 {[%emt 0:01:17]} 13. Ne4 {[%emt 0:04:11]} Nxe4 {[%emt 0:18:47]} 14. dxe4 {[%emt 0:00:09]} Qc7 {[%emt 0:02:59]} 15. Nh4 {[%emt 0:02:41]} Rae8 {[%emt 0:08:07]} 16. Nf5 {[%emt 0:08:24]} f6 {[%emt 0:03:50]} 17. f4 {[%emt 0:02:54]} Bc6 {[%emt 0:04:36]} 18. Rae1 {[%emt 0:09:40]} g6 {[%emt 0:05:58]} 19. Nh4 {[%emt 0:05:39]} Kg7 {[%emt 0:03:03]} 20. Bc1 {[%emt 0:09:33]} Re7 {[%emt 0:03:33]} 21. Qd2 {[%emt 0:15:36]} Rfe8 {[%emt 0:08:20]} 22. e5 {[%emt 0:03:59]} Bxg2 {[%emt 0:10:45]} 23. exd6 {[%emt 0:00:41]} Bxf1 {[%emt 0:00:17]} 24. Rxe7+ {[%emt 0:00:07]} Rxe7 {[%emt 0:00:08]} 25. dxc7 {[%emt 0:00:07]} Re8 {[%emt 0:00:19]} 26. Kxf1 {[%emt 0:00:37]} 1-0

[Event "WYCC 2018 G14"]
[Site "Halkidiki"]
[Date "2018.10.21"]
[Round "3"]
[White "Krasteva, Beloslava"]
[Black "Kasaeva, Sofiia"]
[Result "1/2-1/2"]
[ECO "D47"]
[WhiteElo "2089"]
[BlackElo "1874"]
[Annotator "NA"]
[PlyCount "77"]
[EventDate "2018.10.20"]
[EventType "swiss"]
[EventCountry "GRE"]
[SourceTitle "playchess.com"]
[Source "ChessBase"]
[SourceQuality "1"]
[TimeControl "40/5400+30:1800+30"]

1. d4 {[%emt 0:00:00]} d5 {[%emt 0:00:00]} 2. c4 {[%emt 0:00:00]} c6 {[%emt 0:00:11]} 3. Nc3 {[%emt 0:01:17]} Nf6 {[%emt 0:00:40]} 4. e3 {[%emt 0:00:35]} e6 {[%emt 0:00:37]} 5. Nf3 {[%emt 0:00:33]} Nbd7 {[%emt 0:00:38]} 6. Bd3 {[%emt 0:00:37]} dxc4 {[%emt 0:01:17]} 7. Bxc4 {[%emt 0:00:25]} b5 {[%emt 0:00:13]} 8. Bd3 {[%emt 0:00:31]} Bb7 {[%emt 0:01:45]} 9. O-O {[%emt 0:03:42]} a6 {[%emt 0:04:13]} 10. a4 {[%emt 0:03:20]} b4 $11 {[%emt 0:01:23] LiveBook: 175 Games} 11. Ne4 {[%emt 0:00:54]} c5 {[%emt 0:04:28]} 12. Nxf6+ {[%emt 0:02:23]} Nxf6 {[%emt 0:00:45]} 13. dxc5 {[%emt 0:01:59]} Bxc5 {[%emt 0:02:21]} 14. Qe2 {[%emt 0:01:31]} Qe7 {[%emt 0:08:46]} 15. e4 {[%emt 0:07:42]} e5 {[%emt 0:02:46]} 16. b3 {[%emt 0:05:20]} O-O {[%emt 0:02:17]} 17. Bb2 {[%emt 0:00:38]} Bd6 {[%emt 0:01:25]} 18. Nd2 {[%emt 0:04:34]} a5 {[%emt 0:05:33]} 19. Nc4 {[%emt 0:03:20]} Bc7 {[%emt 0:01:54]} 20. Rac1 {[%emt 0:02:53]} Rac8 {[%emt 0:07:24]} 21. Ne3 {[%emt 0:04:47]} g6 {[%emt 0:03:10]} 22. f3 {[%emt 0:01:53]} Nd7 {[%emt 0:08:21]} 23. Kh1 {[%emt 0:05:50]} Nc5 {[%emt 0:03:15]} 24. Bc4 {[%emt 0:02:06]} Ne6 {[%emt 0:01:52]} 25. Nd5 {[%emt 0:04:16]} Bxd5 {[%emt 0:01:59]} 26. exd5 {[%emt 0:02:22]} Nf4 {[%emt 0:03:13]} 27. Qe4 {[%emt 0:00:54]} Qg5 {[%emt 0:08:31]} 28. g3 {[%emt 0:02:05]} Nh5 {[%emt 0:01:58]} 29. Rcd1 {[%emt 0:03:43]} Bd6 {[%emt 0:02:23]} 30. Rfe1 {[%emt 0:03:22]} Nf6 {[%emt 0:03:25]} 31. Qe2 {[%emt 0:07:04]} Rfe8 {[%emt 0:07:15]} 32. Bc1 {[%emt 0:04:54]} Qh5 {[%emt 0:01:37]} 33. Qg2 {[%emt 0:07:03]} e4 {[%emt 0:05:42]} 34. f4 {[%emt 0:01:34]} e3 {[%emt 0:01:22]} 35. Be2 {[%emt 0:05:22]} Qf5 {[%emt 0:01:24]} 36. Bd3 {[%emt 0:02:20]} Qh5 {[%emt 0:00:46]} 37. Be2 {[%emt 0:03:18]} Qf5 {[%emt 0:00:11]} 38. Bd3 {[%emt 0:01:30]} Qh5 {[%emt 0:00:06]} 39. Be2 {[%emt 0:01:40]} 1/2-1/2

[Event "WYCC 2018 G14"]
[Site "Halkidiki"]
[Date "2018.10.21"]
[Round "3"]
[White "Jyothsna L"]
[Black "Hrebenshchykova, Yelyzaveta"]
[Result "1-0"]
[ECO "A01"]
[WhiteElo "2060"]
[BlackElo "1968"]
[Annotator "NA"]
[PlyCount "113"]
[EventDate "2018.10.20"]
[EventType "swiss"]
[EventCountry "GRE"]
[SourceTitle "playchess.com"]
[Source "ChessBase"]
[SourceQuality "1"]
[TimeControl "40/5400+30:1800+30"]

1. b3 Nf6 2. Bb2 g6 3. e3 Bg7 4. Nf3 O-O 5. d4 d6 6. Be2 Nbd7 7. O-O c5 {A48: 1 d4 Nf6 2 Nf3 g6: Torre, London and Colle Systems} (7... e6 8. c4 Qe7 9. Nc3 Re8 10. Nb5 Nf8 11. c5 a6 12. cxd6 cxd6 13. Nc3 b5 14. Nd2 Bb7 15. a4 bxa4 16. Nxa4 {1-0 (25) Nakamura,H (2786)-Grigoriants,S (2576) chess.com INT 2017}) 8. d5 Re8 9. c4 Nf8 10. Nc3 $146 ({Predecessor:} 10. Qc2 Bf5 11. Bd3 Bxd3 12. Qxd3 e6 13. dxe6 Rxe6 14. Nc3 Qc7 15. Rad1 {½-½ (26) Gordeeva,V (1709)-Garny,A (1783) Oberhof 2011}) 10... e6 11. dxe6 Bxe6 12. Qc2 a6 13. Rad1 Qe7 14. Qc1 Rad8 15. Qa1 N8d7 16. Rd2 Qf8 17. Rfd1 Nb8 18. Ne1 Nc6 19. Bf3 Rd7 20. Nd3 g5 21. Nd5 Bxd5 22. cxd5 Ne5 23. Nxe5 dxe5 24. Bxe5 Nh5 25. Bxg7 Nxg7 26. Qf6 Qe7 27. Qxe7 Rdxe7 28. d6 Rd7 29. Rd5 Ne6 30. Bg4 h6 31. e4 b6 32. g3 Kg7 33. f4 gxf4 34. gxf4 Rdd8 35. Bxe6 fxe6 36. R5d2 Rf8 37. Rf1 Kf6 38. Kf2 e5 39. Ke3 exf4+ 40. Rxf4+ Ke6 41. Rh4 Rh8 42. e5 Kxe5 43. Re4+ Kf6 44. Rf2+ Kg6 45. Re6+ Kg5 46. Ke4 h5 47. Rf4 h4 48. h3 Rhf8 49. Rg4+ Kh5 50. Re5+ Kh6 51. Rxh4+ Kg6 52. Rg4+ Kf6 53. Rf4+ Kg6 54. Rxf8 Rxf8 55. h4 Rd8 56. Kd5 $18 Kf6 57. Re2 1-0